fUST/lending_fUST_20250315
["ID","MTS","AMOUNT","RATE_DAILY","PERIOD"]
[356185981,1742052950371,-3000.0,9e-05,3]
[356185982,1742052950415,-1200.0,9e-05,4]
[356185983,1742052950708,500.0,8.767e-05,2]
[356185984,1742052950861,506.13641044,8.219e-05,2]
[356185985,1742052950956,500.0,8.743e-05,2]
[356185986,1742052951056,500.0,8.743e-05,2]
[356185987,1742052951125,500.0,8.743e-05,2]
[356185988,1742052951368,588.29675817,8.743e-05,2]
[356185989,1742052951515,500.0,8.743e-05,2]
[356185990,1742052951768,2500.0,8.749e-05,2]
[356185991,1742052951945,399.0,7.981e-05,2]
[356185992,1742052952595,12015.81,8.219e-05,2]
[356185993,1742052952650,12015.81,8.219e-05,2]
[356185994,1742052952701,12015.81,8.219e-05,2]
[356185995,1742052952762,12015.81,8.219e-05,2]
[356185996,1742052952818,12015.81,8.219e-05,2]
[356185997,1742052952874,12015.81,8.219e-05,2]
[356185998,1742052952926,12015.81,8.219e-05,2]
[356185999,1742052952983,12015.81,8.219e-05,2]
[356186000,1742052953036,12015.81,8.219e-05,2]
[356186001,1742052953094,12015.81,8.219e-05,2]
[356186002,1742052953150,12015.81,8.219e-05,2]
[356186003,1742052953213,12015.81,8.219e-05,2]
[356186004,1742052953277,12015.81,8.219e-05,2]
[356186005,1742052953503,12015.81,8.219e-05,2]
[356186006,1742052953581,12015.81,8.219e-05,2]
[356186007,1742052953791,12015.81,8.219e-05,2]
[356186008,1742052953845,12015.81,8.219e-05,2]
[356186009,1742052953908,4960.76,8.219e-05,2]
[356186010,1742052953968,12015.81,8.219e-05,2]
[356186011,1742052954022,4960.76,8.493e-05,2]
[356186012,1742052954087,12015.81,8.219e-05,2]
[356186013,1742052954140,4960.76,8.767e-05,2]
[356186014,1742052954196,12015.81,8.219e-05,2]
[356186015,1742052954272,12015.81,8.219e-05,2]
[356186016,1742052954347,12015.81,8.219e-05,2]
[356186017,1742052954416,12015.81,8.219e-05,2]
[356186018,1742052954490,12016.02616245,8.219e-05,2]
[356186019,1742052955062,2500.0,8.741e-05,2]
[356186020,1742052955744,1145.72,8.219e-05,2]
[356186021,1742052955806,1145.72,8.493e-05,2]
[356186022,1742052955863,1145.72,8.767e-05,2]
[356186023,1742052956088,500.0,8.219e-05,2]
[356186024,1742052956151,500.0,8.493e-05,2]
[356186025,1742052956216,500.0,8.767e-05,2]
[356186026,1742052959555,805.80951997,8.59e-05,2]
[356186027,1742052959906,805.80951997,8.836e-05,2]
[356186028,1742052961058,500.0,8.219e-05,2]
[356186029,1742052961294,500.0,8.493e-05,2]
[356186030,1742052962585,2500.0,8.732e-05,2]
[356186031,1742052963208,500.0,8.219e-05,2]
[356186032,1742052963454,500.0,8.493e-05,2]
[356186033,1742052963688,500.0,8.767e-05,2]
[356186034,1742052964085,500.0,8.219e-05,2]
[356186035,1742052964340,500.0,8.219e-05,2]
[356186036,1742052964396,120.70321402,8.493e-05,2]
[356186037,1742053049325,-300.0,8.218e-05,2]
[356186038,1742053049356,-222.45915085,8.219e-05,2]
[356186039,1742053049383,-560.64,8.219e-05,2]
[356186040,1742053049411,-500.0,8.219e-05,2]
[356186041,1742053049438,-500.0,8.219e-05,2]
[356186042,1742053049464,-500.0,8.219e-05,2]
[356186043,1742053049490,-500.0,8.219e-05,2]
[356186044,1742053049516,-500.0,8.219e-05,2]
[356186045,1742053049541,-13799.73,8.219e-05,2]
[356186046,1742053049567,-500.0,8.219e-05,2]
[356186047,1742053049594,-726.01,8.219e-05,2]
[356186048,1742053049620,-500.0,8.219e-05,2]
[356186049,1742053049646,-1503.8,8.219e-05,2]
[356186050,1742053049673,-833.87572497,8.219e-05,2]
[356186051,1742053049698,-507.45944732,8.219e-05,2]
[356186052,1742053049723,-160.0,8.219e-05,2]
[356186053,1742053049749,-8147.14,8.219e-05,2]
[356186054,1742053049775,-500.0,8.219e-05,2]
[356186055,1742053049800,-500.0,8.219e-05,2]
[356186056,1742053049827,-500.0,8.219e-05,2]
[356186057,1742053049853,-1048.16,8.219e-05,2]
[356186058,1742053049879,-500.0,8.219e-05,2]
[356186059,1742053049906,-500.0,8.219e-05,2]
[356186060,1742053049932,-2932.24,8.219e-05,2]
[356186061,1742053049959,-5062.53,8.219e-05,2]
[356186062,1742053049984,-500.0,8.219e-05,2]
[356186063,1742053050010,-500.0,8.219e-05,2]
[356186064,1742053050037,-8103.76,8.219e-05,2]
[356186065,1742053050062,-500.0,8.219e-05,2]
[356186066,1742053050089,-288.64443983,8.219e-05,2]
[356186067,1742053050115,-500.0,8.219e-05,2]
[356186068,1742053050140,-573.82,8.219e-05,2]
[356186069,1742053050168,-802.38,8.219e-05,2]
[356186070,1742053050195,-596.59,8.219e-05,2]
[356186071,1742053050221,-952.44,8.219e-05,2]
[356186072,1742053050246,-500.0,8.219e-05,2]
[356186073,1742053050272,-523.38,8.219e-05,2]
[356186074,1742053050298,-518.35,8.219e-05,2]
[356186075,1742053050324,-924.32,8.219e-05,2]
[356186076,1742053050352,-4064.09,8.219e-05,2]
[356186077,1742053050379,-662.0,8.219e-05,2]
[356186078,1742053050404,-1618.2,8.219e-05,2]
[356186079,1742053050431,-1723.04,8.219e-05,2]
[356186080,1742053050456,-500.0,8.219e-05,2]
[356186081,1742053050483,-3437.68,8.219e-05,2]
[356186082,1742053050510,-543.82055332,8.219e-05,2]
[356186083,1742053050536,-500.0,8.219e-05,2]
[356186084,1742053050562,-500.0,8.219e-05,2]
[356186085,1742053050586,-500.0,8.492e-05,2]
[356186086,1742053050610,-500.0,8.492e-05,2]
[356186087,1742053050784,-500.0,8.492e-05,2]
[356186088,1742053050811,-650.04564663,8.492e-05,2]
[356186089,1742053050837,-500.0,8.492e-05,2]
[356186090,1742053050864,-500.0,8.492e-05,2]
[356186091,1742053050890,-500.0,8.492e-05,2]
[356186092,1742053050916,-500.0,8.492e-05,2]
[356186093,1742053050943,-500.0,8.492e-05,2]
[356186094,1742053050969,-500.0,8.492e-05,2]
[356186095,1742053050995,-379.29678598,8.493e-05,2]
[356186096,1742053051022,-500.0,8.493e-05,2]
[356186097,1742053051047,-560.64,8.493e-05,2]
[356186098,1742053051075,-500.0,8.493e-05,2]
[356186099,1742053051102,-500.0,8.493e-05,2]
[356186100,1742053051128,-500.0,8.493e-05,2]
[356186101,1742053051154,-13799.73,8.493e-05,2]
[356186102,1742053051181,-500.0,8.493e-05,2]
[356186103,1742053051207,-726.01,8.493e-05,2]
[356186104,1742053051232,-500.0,8.493e-05,2]
[356186105,1742053051258,-1503.8,8.493e-05,2]
[356186106,1742053051284,-8147.14,8.493e-05,2]
[356186107,1742053051310,-500.0,8.493e-05,2]
[356186108,1742053051335,-500.0,8.493e-05,2]
[356186109,1742053051364,-471.9,8.493e-05,2]
[356186110,1742053051393,-1048.16,8.493e-05,2]
[356186111,1742053051420,-500.0,8.493e-05,2]
[356186112,1742053051447,-2932.24,8.493e-05,2]
[356186113,1742053051472,-500.0,8.493e-05,2]
[356186114,1742053051500,-5062.53,8.493e-05,2]
[356186115,1742053051526,-500.0,8.493e-05,2]
[356186116,1742053051552,-8103.76,8.493e-05,2]
[356186117,1742053051577,-500.0,8.493e-05,2]
[356186118,1742053051602,-500.0,8.493e-05,2]
[356186119,1742053051628,-573.82,8.493e-05,2]
[356186120,1742053051655,-802.38,8.493e-05,2]
[356186121,1742053051686,-596.59,8.493e-05,2]
[356186122,1742053051712,-952.44,8.493e-05,2]
[356186123,1742053051737,-552.75,8.493e-05,2]
[356186124,1742053051764,-523.38,8.493e-05,2]
[356186125,1742053051790,-518.35,8.493e-05,2]
[356186126,1742053051817,-924.32,8.493e-05,2]
[356186127,1742053051844,-4064.09,8.493e-05,2]
[356186128,1742053051870,-662.0,8.493e-05,2]
[356186129,1742053051896,-1618.2,8.493e-05,2]
[356186130,1742053051922,-1723.04,8.493e-05,2]
[356186131,1742053051949,-500.0,8.493e-05,2]
[356186132,1742053051976,-3437.68,8.493e-05,2]
[356186133,1742053052002,-500.0,8.493e-05,2]
[356186134,1742053052028,-2500.0,8.697e-05,2]
[356186135,1742053052053,-2500.0,8.705e-05,2]
[356186136,1742053052079,-2500.0,8.714e-05,2]
[356186137,1742053052106,-2500.0,8.723e-05,2]
[356186138,1742053052131,-500.0,8.743e-05,2]
[356186139,1742053052157,-500.0,8.743e-05,2]
[356186140,1742053052183,-500.0,8.767e-05,2]
[356186141,1742053052211,-500.0,8.767e-05,2]
[356186142,1742053052238,-560.64,8.767e-05,2]
[356186143,1742053052264,-500.0,8.767e-05,2]
[356186144,1742053052291,-500.0,8.767e-05,2]
[356186145,1742053052317,-500.0,8.767e-05,2]
[356186146,1742053052342,-13799.73,8.767e-05,2]
[356186147,1742053052371,-500.0,8.767e-05,2]
[356186148,1742053052397,-726.01,8.767e-05,2]
[356186149,1742053052423,-500.0,8.767e-05,2]
[356186150,1742053052449,-1503.8,8.767e-05,2]
[356186151,1742053052476,-8147.14,8.767e-05,2]
[356186152,1742053052503,-500.0,8.767e-05,2]
[356186153,1742053052530,-500.0,8.767e-05,2]
[356186154,1742053052558,-1048.16,8.767e-05,2]
[356186155,1742053052585,-500.0,8.767e-05,2]
[356186156,1742053052745,-2932.24,8.767e-05,2]
[356186157,1742053052775,-5062.53,8.767e-05,2]
[356186158,1742053052803,-500.0,8.767e-05,2]
[356186159,1742053052831,-500.0,8.767e-05,2]
[356186160,1742053052859,-8103.76,8.767e-05,2]
[356186161,1742053052884,-500.0,8.767e-05,2]
[356186162,1742053052911,-573.82,8.767e-05,2]
[356186163,1742053052938,-802.38,8.767e-05,2]
[356186164,1742053052965,-558.98118859,8.767e-05,2]
[356186165,1742053052993,-596.59,8.767e-05,2]
[356186166,1742053053021,-952.44,8.767e-05,2]
[356186167,1742053053050,-523.38,8.767e-05,2]
[356186168,1742053053078,-518.35,8.767e-05,2]
[356186169,1742053053105,-4064.09,8.767e-05,2]
[356186170,1742053053132,-924.32,8.767e-05,2]
[356186171,1742053053158,-662.0,8.767e-05,2]
[356186172,1742053053185,-1618.2,8.767e-05,2]
[356186173,1742053053212,-1723.04,8.767e-05,2]
[356186174,1742053053238,-500.0,8.767e-05,2]
[356186175,1742053053265,-3437.68,8.767e-05,2]
[356186176,1742053053292,-500.0,8.767e-05,2]
[356186177,1742053053639,500.0,8.493e-05,2]
[356186178,1742053053689,500.0,8.767e-05,2]
[356186179,1742053055593,1374.94,8.219e-05,2]
[356186180,1742053055859,1374.94,8.493e-05,2]
[356186181,1742053055902,500.0,8.219e-05,2]
[356186182,1742053056104,1374.94,8.767e-05,2]
[356186183,1742053056148,500.0,8.493e-05,2]
[356186184,1742053056400,500.0,8.767e-05,2]
[356186185,1742053057509,500.0,8.219e-05,2]
[356186186,1742053057691,2500.0,8.688e-05,2]
[356186187,1742053057761,500.0,8.493e-05,2]
[356186188,1742053057815,500.0,8.219e-05,2]
[356186189,1742053058015,500.0,8.767e-05,2]
[356186190,1742053061692,500.0,8.219e-05,2]
[356186191,1742053061941,500.0,8.493e-05,2]
[356186192,1742053062176,500.0,8.767e-05,2]
[356186193,1742053063740,500.0,8.219e-05,2]
[356186194,1742053063953,500.0,8.493e-05,2]
[356186195,1742053064012,3136.94,8.219e-05,2]
[356186196,1742053064204,500.0,8.767e-05,2]
[356186197,1742053064272,3136.94,8.493e-05,2]
[356186198,1742053064367,500.0,8.219e-05,2]
[356186199,1742053064535,3136.94,8.767e-05,2]
[356186200,1742053064627,500.0,8.493e-05,2]
[356186201,1742053064857,500.0,8.767e-05,2]
[356186202,1742053065010,500.0,8.219e-05,2]
[356186203,1742053065370,500.0,8.493e-05,2]
[356186204,1742053065611,500.0,8.767e-05,2]
[356186205,1742053069932,801.99,8.219e-05,2]
[356186206,1742053070191,801.99,8.493e-05,2]
[356186207,1742053070445,801.99,8.767e-05,2]
[356186208,1742053075598,3508.21,8.219e-05,2]
[356186209,1742053076483,2500.0,8.679e-05,2]
[356186210,1742053076707,500.0,8.219e-05,2]
[356186211,1742053076957,500.0,8.493e-05,2]
[356186212,1742053077214,500.0,8.767e-05,2]
[356186213,1742053077415,500.0,8.219e-05,2]
[356186214,1742053077669,500.0,8.493e-05,2]
[356186215,1742053077933,648.84107203,8.767e-05,2]
[356186216,1742053079708,500.0,8.219e-05,2]
[356186217,1742053079988,500.0,8.493e-05,2]
[356186218,1742053080029,500.0,8.219e-05,2]
[356186219,1742053080243,500.0,8.767e-05,2]
[356186220,1742053080277,500.0,8.493e-05,2]
[356186221,1742053080531,500.0,8.767e-05,2]
[356186222,1742053081876,3508.21,8.493e-05,2]
[356186223,1742053082231,3508.21,8.767e-05,2]
[356186224,1742053082675,500.0,8.219e-05,2]
[356186225,1742053082923,500.0,8.493e-05,2]
[356186226,1742053083201,500.0,8.767e-05,2]
[356186227,1742053084406,10173.97,8.219e-05,2]
[356186228,1742053084658,10173.97,8.493e-05,2]
[356186229,1742053084964,10173.97,8.767e-05,2]
[356186230,1742053085962,500.0,8.219e-05,2]
[356186231,1742053086207,500.0,8.493e-05,2]
[356186232,1742053086458,500.0,8.767e-05,2]
[356186233,1742053088567,500.0,8.219e-05,2]
[356186234,1742053088817,500.0,8.493e-05,2]
[356186235,1742053089066,500.0,8.767e-05,2]
[356186236,1742053090885,5257.27,8.219e-05,2]
[356186237,1742053091275,5257.27,8.493e-05,2]
[356186238,1742053091565,5257.27,8.767e-05,2]
[356186239,1742053095051,834.02,8.219e-05,2]
[356186240,1742053095291,2500.0,8.67e-05,2]
[356186241,1742053095327,834.02,8.493e-05,2]
[356186242,1742053095594,834.02,8.767e-05,2]
[356186243,1742053098019,631.04,8.219e-05,2]
[356186244,1742053098271,631.04,8.493e-05,2]
[356186245,1742053098521,631.04,8.767e-05,2]
[356186246,1742053099810,500.0,8.219e-05,2]
[356186247,1742053100951,630.14,8.219e-05,2]
[356186248,1742053101215,630.14,8.493e-05,2]
[356186249,1742053101505,630.14,8.767e-05,2]
[356186250,1742053103049,500.0,8.219e-05,2]
[356186251,1742053103371,500.0,8.493e-05,2]
[356186252,1742053103607,500.0,8.767e-05,2]
[356186253,1742053104655,500.0,8.219e-05,2]
[356186254,1742053104897,296.05231022,8.493e-05,2]
[356186255,1742053106254,500.0,8.219e-05,2]
[356186256,1742053106498,500.0,8.493e-05,2]
[356186257,1742053106746,500.0,8.767e-05,2]
[356186258,1742053107775,11586.98,8.219e-05,2]
[356186259,1742053108041,11586.98,8.493e-05,2]
[356186260,1742053108319,11586.98,8.767e-05,2]
[356186261,1742053112015,520.11,8.219e-05,2]
[356186262,1742053112288,520.11,8.493e-05,2]
[356186263,1742053112573,520.11,8.767e-05,2]
[356186264,1742053113657,500.0,8.219e-05,2]
[356186265,1742053114113,2500.0,8.661e-05,2]
[356186266,1742053114269,538.6,8.493e-05,2]
[356186267,1742053115651,685.74,8.219e-05,2]
[356186268,1742053115918,685.74,8.493e-05,2]
[356186269,1742053115986,379.0539416,8.219e-05,2]
[356186270,1742053116205,685.74,8.767e-05,2]
[356186271,1742053116475,500.0,8.219e-05,2]
[356186272,1742053116731,500.0,8.493e-05,2]
[356186273,1742053117005,500.0,8.767e-05,2]
[356186274,1742053123137,500.0,8.219e-05,2]
[356186275,1742053123443,500.0,8.493e-05,2]
[356186276,1742053123693,500.0,8.767e-05,2]
[356186277,1742053124034,2263.51,8.219e-05,2]
[356186278,1742053124276,2263.51,8.493e-05,2]
[356186279,1742053124525,2263.51,8.767e-05,2]
[356186280,1742053124673,500.0,8.219e-05,2]
[356186281,1742053124905,500.0,8.493e-05,2]
[356186282,1742053125485,500.0,8.767e-05,2]
[356186283,1742053126802,500.0,8.219e-05,2]
[356186284,1742053127110,500.0,8.219e-05,2]
[356186285,1742053127372,500.0,8.493e-05,2]
[356186286,1742053127641,500.0,8.767e-05,2]
[356186287,1742053128088,500.0,8.219e-05,2]
[356186288,1742053128178,500.0,8.219e-05,2]
[356186289,1742053128387,500.0,8.493e-05,2]
[356186290,1742053128445,500.0,8.493e-05,2]
[356186291,1742053128662,508.640708,8.767e-05,2]
[356186292,1742053128726,500.0,8.767e-05,2]
[356186293,1742053129757,585.41,8.219e-05,2]
[356186294,1742053130006,585.41,8.493e-05,2]
[356186295,1742053130287,585.41,8.767e-05,2]
[356186296,1742053130592,500.0,8.219e-05,2]
[356186297,1742053130838,500.0,8.493e-05,2]
[356186298,1742053131088,500.0,8.767e-05,2]
[356186299,1742053132965,2500.0,8.653e-05,2]
[356186300,1742053133826,6475.88,8.219e-05,2]
[356186301,1742053134095,6475.88,8.493e-05,2]
[356186302,1742053134375,6475.88,8.767e-05,2]
[356186303,1742053134588,500.0,8.219e-05,2]
[356186304,1742053134879,515.05479477,8.493e-05,2]
[356186305,1742053135460,500.0,8.219e-05,2]
[356186306,1742053136061,156.80170231,8.493e-05,2]
[356186307,1742053136695,500.0,8.219e-05,2]
[356186308,1742053136939,500.0,8.493e-05,2]
[356186309,1742053138909,500.0,8.219e-05,2]
[356186310,1742053139366,500.0,8.493e-05,2]
[356186311,1742053139420,500.0,8.767e-05,2]
[356186312,1742053141307,500.0,8.219e-05,2]
[356186313,1742053141538,500.0,8.493e-05,2]
[356186314,1742053141789,500.0,8.767e-05,2]
[356186315,1742053142650,516.24,8.219e-05,2]
[356186316,1742053142937,516.24,8.493e-05,2]
[356186317,1742053143167,500.0,8.219e-05,2]
[356186318,1742053143207,516.24,8.767e-05,2]
[356186319,1742053143437,500.0,8.493e-05,2]
[356186320,1742053143700,500.0,8.767e-05,2]
[356186321,1742053144154,150.0,8.5e-05,2]
[356186322,1742053144474,152.0,8.5e-05,2]
[356186323,1742053144812,305.0,8.5e-05,2]
[356186324,1742053145119,121499.59,8.219e-05,2]
[356186325,1742053145178,609.0,8.5e-05,2]
[356186326,1742053145390,121499.59,8.493e-05,2]
[356186327,1742053145533,1219.0,8.5e-05,2]
[356186328,1742053145636,121499.59,8.767e-05,2]
[356186329,1742053145900,2438.0,8.5e-05,2]
[356186330,1742053146259,4875.0,8.5e-05,2]
[356186331,1742053146454,2706.82,8.219e-05,2]
[356186332,1742053146642,6158.0,8.5e-05,2]
[356186333,1742053146744,2706.82,8.493e-05,2]
[356186334,1742053147003,2706.82,8.767e-05,2]
[356186335,1742053147415,13021.99,8.219e-05,2]
[356186336,1742053147465,9490.0,8.5e-05,2]
[356186337,1742053147699,13021.99,8.493e-05,2]
[356186338,1742053147988,13021.99,8.767e-05,2]
[356186339,1742053148146,9750.0,8.5e-05,2]
[356186340,1742053148594,15063.0,8.5e-05,2]
[356186341,1742053149058,500.0,8.219e-05,2]
[356186342,1742053149318,500.0,8.493e-05,2]
[356186343,1742053149592,500.0,8.219e-05,2]
[356186344,1742053149626,500.0,8.767e-05,2]
[356186345,1742053149843,500.0,8.493e-05,2]
[356186346,1742053150109,500.0,8.767e-05,2]
[356186347,1742053151687,2500.0,8.644e-05,2]
[356186348,1742053154251,500.0,8.219e-05,2]
[356186349,1742053154511,500.0,8.493e-05,2]
[356186350,1742053154783,500.0,8.767e-05,2]
[356186351,1742053157519,1460.05,8.219e-05,2]
[356186352,1742053157793,1460.05,8.493e-05,2]
[356186353,1742053157900,156.396904,8.951e-05,2]
[356186354,1742053158065,1460.05,8.767e-05,2]
[356186355,1742053162141,1544.35,8.219e-05,2]
[356186356,1742053162420,1544.35,8.493e-05,2]
[356186357,1742053162678,1544.35,8.767e-05,2]
[356186358,1742053164341,500.0,8.219e-05,2]
[356186359,1742053164616,500.0,8.493e-05,2]
[356186360,1742053164854,500.0,8.767e-05,2]
[356186361,1742053165471,500.0,8.219e-05,2]
[356186362,1742053165902,500.0,8.493e-05,2]
[356186363,1742053165938,1721.38,8.219e-05,2]
[356186364,1742053165992,500.0,8.767e-05,2]
[356186365,1742053166341,1721.38,8.493e-05,2]
[356186366,1742053166421,1721.38,8.767e-05,2]
[356186367,1742053168885,1057.96,8.219e-05,2]
[356186368,1742053169148,1057.96,8.493e-05,2]
[356186369,1742053169187,3960.41,8.219e-05,2]
[356186370,1742053169425,1057.96,8.767e-05,2]
[356186371,1742053169570,3960.41,8.493e-05,2]
[356186372,1742053169830,3960.41,8.767e-05,2]
[356186373,1742053170518,500.0,8.219e-05,2]
[356186374,1742053170882,500.0,8.493e-05,2]
[356186375,1742053176056,500.0,8.219e-05,2]
[356186376,1742053176774,511.1047584,8.219e-05,2]
[356186377,1742053178888,500.0,8.219e-05,2]
[356186378,1742053179138,500.0,8.493e-05,2]
[356186379,1742053181097,709.13,8.219e-05,2]
[356186380,1742053181348,709.13,8.493e-05,2]
[356186381,1742053181609,709.13,8.767e-05,2]
[356186382,1742053183919,500.0,8.219e-05,2]
[356186383,1742053184169,500.0,8.493e-05,2]
[356186384,1742053184422,500.0,8.767e-05,2]
[356186385,1742053185362,500.0,8.219e-05,2]
[356186386,1742053185614,500.0,8.493e-05,2]
[356186387,1742053185709,667.82,8.219e-05,2]
[356186388,1742053186160,500.0,8.767e-05,2]
[356186389,1742053186197,667.82,8.493e-05,2]
[356186390,1742053186236,500.0,8.219e-05,2]
[356186391,1742053186280,667.82,8.767e-05,2]
[356186392,1742053186463,500.0,8.493e-05,2]
[356186393,1742053186497,500.0,8.219e-05,2]
[356186394,1742053186963,500.0,8.493e-05,2]
[356186395,1742053187012,4652.48,8.219e-05,2]
[356186396,1742053187092,500.0,8.767e-05,2]
[356186397,1742053187223,4652.48,8.493e-05,2]
[356186398,1742053187504,4652.48,8.767e-05,2]
[356186399,1742053190508,500.0,8.219e-05,2]
[356186400,1742053190808,500.0,8.493e-05,2]
[356186401,1742053190985,7826.88,8.219e-05,2]
[356186402,1742053191107,500.0,8.767e-05,2]
[356186403,1742053191261,7826.88,8.493e-05,2]
[356186404,1742053191307,870.51,8.219e-05,2]
[356186405,1742053191520,7826.88,8.767e-05,2]
[356186406,1742053191555,870.51,8.493e-05,2]
[356186407,1742053191794,870.51,8.767e-05,2]
[356186408,1742053194265,500.0,8.219e-05,2]
[356186409,1742053194609,500.0,8.493e-05,2]
[356186410,1742053202869,1850.77,8.219e-05,2]
[356186411,1742053203143,1850.77,8.493e-05,2]
[356186412,1742053203477,1850.77,8.767e-05,2]
[356186413,1742053204380,500.0,8.219e-05,2]
[356186414,1742053204632,500.0,8.493e-05,2]
[356186415,1742053204909,500.0,8.767e-05,2]
[356186416,1742053205288,5374.7,8.219e-05,2]
[356186417,1742053205559,5374.7,8.493e-05,2]
[356186418,1742053205839,423.33087118,8.767e-05,2]
[356186424,1742053374215,-1000.0,0.0002,120]
[356186425,1742053376311,-1000.0,0.0002,120]
[356186426,1742053377630,-1000.0,0.0002,120]
[356186427,1742053379242,-1000.0,0.0002,120]
[356186428,1742053380783,-1000.0,0.0002,120]
[356186429,1742053539298,-1000.0,0.0002,120]
[356186430,1742053542244,-1000.0,0.0002,120]
[356186463,1742053838544,-268.735003,8.055e-05,2]
[356186470,1742053838615,-1647.264997,8.055e-05,2]
[356186492,1742053838820,-572.22729407,8.218e-05,2]
[356186494,1742053838830,-500.0,8.218e-05,2]
[356186496,1742053838841,-173.0174234,8.218e-05,2]
[356186498,1742053838851,-300.0,8.218e-05,2]
[356186500,1742053838860,-500.0,8.219e-05,2]
[356186502,1742053838869,-500.0,8.219e-05,2]
[356186504,1742053838879,-500.0,8.219e-05,2]
[356186506,1742053838889,-500.0,8.219e-05,2]
[356186508,1742053838899,-500.0,8.219e-05,2]
[356186510,1742053838908,-500.0,8.219e-05,2]
[356186512,1742053838918,-500.0,8.219e-05,2]
[356186514,1742053838928,-500.0,8.219e-05,2]
[356186516,1742053838937,-500.0,8.219e-05,2]
[356186518,1742053838947,-500.0,8.219e-05,2]
[356186520,1742053838956,-643.08,8.219e-05,2]
[356186522,1742053838966,-500.0,8.219e-05,2]
[356186524,1742053838976,-500.0,8.219e-05,2]
[356186526,1742053838985,-500.0,8.219e-05,2]
[356186527,1742053838994,-500.0,8.219e-05,2]
[356186529,1742053839004,-500.0,8.219e-05,2]
[356186531,1742053839014,-500.0,8.219e-05,2]
[356186533,1742053839023,-500.0,8.219e-05,2]
[356186535,1742053839033,-500.0,8.219e-05,2]
[356186537,1742053839042,-500.0,8.219e-05,2]
[356186539,1742053839051,-500.0,8.219e-05,2]
[356186541,1742053839062,-337.69671652,8.219e-05,2]
[356186543,1742053839071,-500.0,8.219e-05,2]
[356186545,1742053839081,-500.0,8.219e-05,2]
[356186547,1742053839090,-500.0,8.219e-05,2]
[356186549,1742053839099,-620.83,8.219e-05,2]
[356186551,1742053839109,-500.0,8.219e-05,2]
[356186553,1742053839118,-500.0,8.219e-05,2]
[356186555,1742053839128,-651.02,8.219e-05,2]
[356186557,1742053839137,-1329.36,8.219e-05,2]
[356186559,1742053839147,-1329.36,8.219e-05,2]
[356186561,1742053839156,-1329.36,8.219e-05,2]
[356186563,1742053839166,-1329.36,8.219e-05,2]
[356186565,1742053839175,-1329.36,8.219e-05,2]
[356186567,1742053839184,-1329.36,8.219e-05,2]
[356186569,1742053839194,-334.44470388,8.219e-05,2]
[356186571,1742053839206,-994.91529612,8.219e-05,2]
[356186573,1742053839216,-1329.36,8.219e-05,2]
[356186575,1742053839225,-1329.36,8.219e-05,2]
[356186577,1742053839235,-1329.36,8.219e-05,2]
[356186579,1742053839244,-1329.36,8.219e-05,2]
[356186581,1742053839254,-1329.36,8.219e-05,2]
[356186583,1742053839263,-1329.36,8.219e-05,2]
[356186585,1742053839274,-1329.36,8.219e-05,2]
[356186587,1742053839283,-1329.36,8.219e-05,2]
[356186589,1742053839292,-1329.36,8.219e-05,2]
[356186591,1742053839301,-1329.36,8.219e-05,2]
[356186593,1742053839311,-1329.36,8.219e-05,2]
[356186595,1742053839321,-1329.36,8.219e-05,2]